Cogmind - Beta 11 @@@ ROGUE MODE // 2022.04.13 @ 22:29:39 Player: AlmondRoll Result: Destroyed by B-75 Beast with Magnetic Acceleration Cannon Performance ------------- Evolutions (4) 2000 Regions Visited (14) 2800 Robots Destroyed (253) 1265 Value Destroyed (6723) 6723 Prototype IDs (56) 1120 Alien Tech Used (0) 0 Bonus (1525) 1525 TOTAL SCORE: 15433 Bonus ------- High Alert Combat Kills 562 Follower Combat Kills 789 Aligned with FarCom 300 Met Data Miner 300 Friendly Fire -426 Cogmind --------- Core Integrity 0/850 Matter 300/300 Energy 36/100 System Corruption 10% Temperature Cool (8) Movement Hovering (60) Location -6/Extension Parts ------- > --- POWER (1) -------- (None) > --- PROPULSION (4) --- Combat Airjet Gyrokinetic Inverter Gyrokinetic Inverter Gyrokinetic Inverter > --- UTILITY (8) ------ Medium Storage Unit Advanced Sensor Array Advanced Signal Interpreter Advanced Melee Analysis Suite Light Regenerative Plating System Shield > --- WEAPON (2) ------- (None) > --- INVENTORY (10) --- Advanced Heat Sink Gravity Neutralizer Improved Light Armor Plating Hacking Suite System Shield Authchip [Device] Authchip [Processor] Precision Rocket Launcher Phasing Sabre Peak State ------------ > --- POWER ------------ Light Antimatter Reactor > --- PROPULSION ------- Gyrokinetic Inverter Gyrokinetic Inverter Gyrokinetic Inverter Gyrokinetic Inverter > --- UTILITY ---------- Advanced Heat Sink Medium Storage Unit Advanced Sensor Array Advanced Signal Interpreter Advanced Melee Analysis Suite Improved Reaction Control System Light Regenerative Plating System Shield > --- WEAPON ----------- Phasing Sabre Enhanced Force Lance > --- INVENTORY -------- Combat Airjet Advanced Heat Sink Gravity Neutralizer Hacking Suite Authchip [Device] Authchip [Processor] Precision Rocket Launcher Chainsword Phasing Sabre [Rating: 84] Favorites ----------- Power Light Fission Core Engine Light Ion Engine Power Core Light Fission Core Reactor Light Antimatter Reactor Propulsion Aluminum Leg Leg Aluminum Leg Hover Unit Gyrokinetic Inverter Utility Large Storage Unit Device Advanced Sensor Array Storage Large Storage Unit Processor Advanced Targeting Computer Hackware System Shield Protection Hardened Light Armor Plating Weapon Precision Assault Rifle Energy Gun Advanced Beam Rifle Energy Cannon Plasma Cannon Ballistic Gun Precision Assault Rifle Ballistic Cannon Enhanced Gauss Cannon Launcher Heavy Rocket Launcher Impact Weapon Great Maul Slashing Weapon Makeshift Axe Piercing Weapon Enhanced Force Lance Build | -11 -10 -10 -9 -9 -9 -8 -8 -7 -7 -7 -7 -6 -6 -6 ------- Run | Scr Mat Min Mat Min Exi Min Mat Fac Low Low Dat Pro Fac Ext Slots Evolved 8 | . . . 2 . . . 2 2 . . . . 2 . Power . | . . . . . . . . . . . . . . . Propulsion 2 | . . . 2 . . . . . . . . . . . Utility 6 | . . . . . . . 2 2 . . . . 2 . Weapon . | . . . . . . . . . . . . . . . Parts Attached 339 | 2 14 1 70 . 3 2 42 71 16 12 2 9 85 10 Power 26 | . 2 . 6 . . . 1 5 1 1 . 2 6 2 Engine 14 | . 2 . 4 . . . 1 4 1 . . . 2 . Core 10 | . . . 2 . . . . 1 . 1 . 2 3 1 Reactor 2 | . . . . . . . . . . . . . 1 1 Propulsion 84 | . 2 . 29 . 2 . 17 12 3 . . 2 16 1 Treads . | . . . . . . . . . . . . . . . Leg 73 | . 2 . 29 . 2 . 17 12 3 . . 2 6 . Wheel . | . . . . . . . . . . . . . . . Hover 11 | . . . . . . . . . . . . . 10 1 Flight . | . . . . . . . . . . . . . . . Utility 139 | 1 1 1 21 . 1 . 12 31 6 7 . . 54 4 Device 77 | 1 . 1 8 . . . 8 20 3 . . . 34 2 Storage 7 | . 1 . 1 . 1 . . . 1 . . . 2 1 Processor 17 | . . . . . . . 1 2 . 7 . . 7 . Hackware 12 | . . . 1 . . . 2 3 . . . . 6 . Protection 26 | . . . 11 . . . 1 6 2 . . . 5 1 Artifact . | . . . . . . . . . . . . . . . Weapon 90 | 1 9 . 14 . . 2 12 23 6 4 2 5 9 3 Energy Gun 15 | . 1 . . . . . 6 2 . 2 2 2 . . Energy Cannon 9 | . 2 . . . . . . 4 3 . . . . . Ballistic Gun 38 | 1 6 . 12 . . 2 4 8 . . . 3 2 . Ballistic Cannon 5 | . . . . . . . . 4 . . . . 1 . Launcher 6 | . . . . . . . 1 1 2 . . . 1 1 Special Weapon . | . . . . . . . . . . . . . . . Impact Weapon 8 | . . . . . . . 1 4 1 . . . 2 . Slashing Weapon 6 | . . . 2 . . . . . . 2 . . 1 1 Piercing Weapon 3 | . . . . . . . . . . . . . 2 1 Special Melee Weapon . | . . . . . . . . . . . . . . . Unidentified Prototypes 15 | . 1 . 2 . . . 6 3 . . . . 3 . Corrupted Parts 5 | . . . . . . . . . 2 . . 3 . . System Corruption 15 | . . . . . . . . . 3 . . 12 . . Parts Lost 59 | . . 1 4 . . . 9 5 12 2 . 3 16 7 Power 7 | . . . 1 . . . 1 . 2 . . . 1 2 Propulsion 16 | . . . . . . . 4 1 3 . . 1 6 1 Utility 22 | . . 1 . . . . 2 2 6 1 . . 7 3 Weapon 14 | . . . 3 . . . 2 2 1 1 . 2 2 1 Highest Loss Streak 11 | . . 1 1 . . . 8 2 11 2 . 2 11 5 To Critical Strikes . | . . . . . . . . . . . . . . . Average Slot Usage (%) 95 | . 100 92 99 100 100 100 95 98 79 80 86 96 90 98 Engine 4 | . 14 14 7 . . . 7 4 . . . . . . Core 3 | . . . 3 11 11 11 . 2 3 2 7 6 4 1 Leg 26 | . 28 28 43 44 44 44 33 29 29 30 30 27 8 . Hover 4 | . . . . . . . . . . . . . 12 26 Device 10 | . 14 7 5 . . . 14 14 3 . . . 15 19 Storage 7 | . 14 14 11 11 11 11 9 7 9 10 7 7 2 3 Processor 8 | . . . . . . . . 7 3 21 38 38 20 13 Hackware 5 | . . . . . . . 9 10 3 . . . 10 6 Protection 3 | . . . 5 11 11 11 2 4 8 . . . 1 7 Energy Gun 1 | . . . . . . . 13 . . 5 1 6 . . Ballistic Gun 10 | . 26 28 19 22 22 22 3 7 . . . 8 4 . Impact Weapon 1 | . . . . . . . 1 2 9 6 . . 3 . Piercing Weapon 1 | . . . . . . . . . . . . . 3 5 Naked Turns 5 | . . . . . . . . . . . . . 5 . Heaviest Build 57 | 14 20 20 39 36 36 36 47 56 57 40 40 42 45 42 Greatest Support 71 | 20 20 20 60 60 60 60 60 64 71 71 71 71 71 45 Greatest Overweight (x) 1 | . . . . . . . . . . . . . 1 . Average Overweight (x) . | . . . . . . . . . . . . . . . Largest Inventory Capacity 15 | 8 10 10 15 15 15 15 15 15 15 15 15 15 15 10 Average Capacity 12 | 8 8 10 14 15 15 15 15 15 15 15 15 15 8 7 Most Carried 15 | 8 10 10 15 15 15 15 15 15 15 15 15 15 15 10 Average Carried 12 | 6 8 9 14 15 14 15 14 14 13 14 15 14 8 7 Final Capacity 15 | 8 10 10 15 15 15 15 15 15 15 15 15 15 5 10 Final Carried 15 | 8 10 10 15 15 15 15 15 15 13 15 15 15 5 9 Class Distribution -------------------- 44% | Mutant 28% | Scavenger-Mutant 12% | Hacker-Mutant 9% | Machinist-Mutant Dominant Class ---------------- Mutant | -10/Materials Mutant | -10/Mines Scavenger-Mutant | -9/Materials Mutant | -9/Mines Mutant | -9/Exiles Mutant | -8/Mines Scavenger-Mutant | -8/Materials Scavenger-Mutant | -7/Factory Mutant | -7/Lower Caves Mutant | -7/Lower Caves Mutant | -7/Data Miner Mutant | -6/Proximity Caves Hacker-Mutant | -6/Factory Machinist-Mutant | -6/Extension Resources | -11 -10 -10 -9 -9 -9 -8 -8 -7 -7 -7 -7 -6 -6 -6 ----------- Run | Scr Mat Min Mat Min Exi Min Mat Fac Low Low Dat Pro Fac Ext Matter Collected 6957 | 228 436 94 1743 . 30 242 550 1326 352 173 . 197 1443 143 Remotely . | . . . . . . . . . . . . . . . Salvage Created 11305 | 88 607 151 2468 . . 338 1010 1829 383 537 . 611 2539 744 Parts 533 | 3 35 2 164 . . 22 50 93 8 5 . 19 108 24 Haulers Intercepted 20 | . 2 . 6 . . . 5 3 . . . . 4 . Recyclers Shooed 11 | 1 3 . 1 . . . . 3 . . . 1 2 . Parts Field Recycled . | . . . . . . . . . . . . . . . Retrieved Matter . | . . . . . . . . . . . . . . . Parts Self-Destructed 12 | . . . . . . . . . 4 . . 8 . . Prevented 8 | . . . . . . . . . 1 . . 7 . . Kills | -11 -10 -10 -9 -9 -9 -8 -8 -7 -7 -7 -7 -6 -6 -6 ------- Run | Scr Mat Min Mat Min Exi Min Mat Fac Low Low Dat Pro Fac Ext Combat Hostiles Destroyed 151 | . 11 6 38 . . 15 13 18 12 . . 7 26 5 Melee 13 | . . . 3 . . . . . . . . . 5 5 Guns 103 | . 11 6 35 . . 15 12 13 . . . 6 5 . Cannons 10 | . . . . . . . . 4 1 . . . 5 . AOE 17 | . . . . . . . . . 7 . . 1 9 . Classes Destroyed 19 | 2 6 1 2 . . 1 . 3 . 1 . 1 2 . Worker 25 | . 2 . 8 . . . 1 9 . . . . 5 . Builder 6 | . . . . . . . . 1 . . . . 5 . Tunneler 2 | 1 . . 1 . . . . . . . . . . . Hauler 20 | . 2 . 6 . . . 5 3 . . . . 4 . Recycler 25 | 1 2 1 4 . . 1 . 6 . . . . 7 3 Mechanic 3 | . . . . . . . . 1 . . . . 2 . Operator 11 | . 2 . 3 . . . . 2 . . . . 2 2 Watcher 15 | . 2 . 5 . . . 2 2 . . . . 3 1 Swarmer 40 | . 6 . 4 . . 14 . 3 4 . . 4 5 . Grunt 56 | . 5 . 23 . . . 10 5 4 . . 2 5 2 Brawler 1 | . . . 1 . . . . . . . . . . . Duelist 1 | . . . . . . . . . . . . 1 . . Protector 2 | . . . . . . . . . . . . . 2 . Sentry 22 | . . . 10 . . . 3 4 . . . . 3 2 Specialist 4 | . . . . . . . . . . . . . 4 . Hunter 4 | . . . . . . 1 . . . . . . 2 1 Programmer 11 | . . . . . . . . 6 . . . . 5 . Decomposer 7 | . . . . . . . . . 6 1 . . . . Packrat 6 | . . . . . . . . . . 4 . 2 . . Samaritan 6 | . . . . . . . . . . 3 . 3 . . Assembled 6 | . . 6 . . . . . . . . . . . . Thug 1 | . . . . . . . . . 1 . . . . . Savage 4 | . . . . . . . . . 3 1 . . . . Best Kill Streak 20 | 2 3 6 8 . . 8 4 6 4 . . 4 20 3 Combat Bots Only 13 | . 3 6 6 . . 8 3 3 4 . . 4 13 2 Max Kills in Single Turn 5 | 1 2 1 2 . . 1 1 2 2 2 . 2 5 1 Gunslinging 1 | . . . . . . . . . . . . . 1 . Exploded 4 | . . . . . . . . . 2 . . 1 4 . Melee 1 | . . . 1 . . . . . . . . . 1 1 Uniques/NPCs Destroyed . | . . . . . . . . . . . . . . . Combat | -11 -10 -10 -9 -9 -9 -8 -8 -7 -7 -7 -7 -6 -6 -6 -------- Run | Scr Mat Min Mat Min Exi Min Mat Fac Low Low Dat Pro Fac Ext Damage Taken 11442 | . 194 291 1820 . . 648 952 1839 1623 64 . 341 2625 1045 Core 1917 | . 22 41 234 . . 69 208 302 152 . . 18 575 296 Absorbed by Shields 64 | . . . . . . . . 64 . . . . . . Regen/Repaired (Parts) 493 | . . . 11 . . . 95 126 . . . . 132 129 Core Remaining (%) 58 | 100 . 74 . . . 24 62 . . . . 32 . . Volleys Fired 545 | 8 51 12 163 . 9 34 73 97 12 5 . 17 62 2 Largest 2 | 2 2 2 2 . 1 2 2 2 1 2 . 2 2 1 Hottest 160 | 70 60 46 46 . 23 46 117 160 75 100 . 100 85 43 Shots Fired 1002 | 16 88 24 323 . 9 68 146 168 13 10 . 32 103 2 Gun 894 | 16 74 24 323 . 9 68 146 122 . 10 . 32 70 . Cannon 92 | . 14 . . . . . . 45 5 . . . 28 . Launcher 16 | . . . . . . . . 1 8 . . . 5 2 Special . | . . . . . . . . . . . . . . . Kinetic 806 | 8 74 24 323 . 9 68 60 129 . . . 13 98 . Thermal 146 | 8 14 . . . . . 86 38 . . . . . . Explosive 16 | . . . . . . . . 1 8 . . . 5 2 Electromagnetic 34 | . . . . . . . . . 5 10 . 19 . . Robot Hit Streak 28 | 7 9 6 14 . . 16 16 21 3 8 . 18 28 1 Robot Miss Streak 5 | 2 5 5 5 . . 2 3 3 2 1 . 2 2 1 Penetration Max 1 | . . . . . . . . . . . . . 1 . Secondary Targets 12 | . 1 2 . . . 5 . 1 . . . 2 1 . Max Gunslinging Chain 1 | . 1 1 . . . 1 . 1 . . . 1 1 . Shots Hit Robots 855 | 12 58 16 248 . . 51 107 140 36 18 . 30 117 22 Core Hits 428 | 3 33 15 98 2 . 24 42 56 13 10 . 29 87 16 Critical Kills 1 | . . 1 . . . . . . . . . . . . Critical Parts Destroyed 19 | 1 . . 2 . . 1 2 3 6 2 . . 2 . Critical Strikes 35 | 1 . 1 2 . . 1 11 4 6 2 . . 5 2 Burn 9 | . . . . . . . 9 . . . . . . . Destroy 8 | 1 . 1 2 . . 1 2 1 . . . . . . Blast 2 | . . . . . . . . 1 . . . . 1 . Smash 12 | . . . . . . . . 2 6 2 . . 2 . Sever 1 | . . . . . . . . . . . . . . 1 Impale 3 | . . . . . . . . . . . . . 2 1 Melee Attacks 212 | . . . 33 . . . 1 19 38 12 . . 81 28 Impact 85 | . . . . . . . 1 19 38 6 . . 21 . Slashing 48 | . . . 33 . . . . . . 6 . . 4 5 Piercing 79 | . . . . . . . . . . . . . 56 23 Sneak Attacks 47 | . . . 4 . . . . 6 6 10 . . 15 6 Combat Hostiles 1 | . . . . . . . . . . . . . . 1 Follow-up Attacks 9 | . . . . . . . . . . 1 . . 6 2 Damage Inflicted 24389 | 128 832 256 4262 19 . 613 1729 3642 2544 1057 . 678 6873 1756 Guns 10884 | 128 652 209 3439 . . 611 1696 2055 . 195 . 603 1296 . Cannons 1758 | . 176 . . . . . . 710 97 . . . 775 . Explosions 3351 | . . . . . . . . 33 1107 63 . 47 1804 297 Melee 8229 | . . . 797 . . . 33 803 1340 799 . . 2998 1459 Ramming 167 | . 4 47 26 19 . 2 . 41 . . . 28 . . Kinetic 9981 | 40 652 209 3439 . . 611 594 2128 . . . 237 2071 . Thermal 2113 | 88 176 . . . . . 1102 637 . 63 . 47 . . Explosive 3241 | . . . . . . . . 33 1107 . . . 1804 297 Electromagnetic 658 | . . . . . . . . . 97 195 . 366 . . Impact 3328 | . . . . . . . 33 803 1340 487 . . 665 . Slashing 1315 | . . . 797 . . . . . . 312 . . 128 78 Piercing 3586 | . . . . . . . . . . . . . 2205 1381 Highest Corruption 67 | . . 4 . . . . 8 9 55 55 55 67 8 10 Average Corruption 13 | . . 4 . . . . 6 5 30 55 55 61 6 8 Corruption Purged . | . . . . . . . . . . . . . . . Corruption Blocked . | . . . . . . . . . . . . . . . Effects 268 | . . 6 . . . . 29 65 29 24 4 24 63 24 Message Errors 62 | . . 3 . . . . 11 13 3 5 1 4 17 5 Matter Fused 63 | . . 1 . . . . 2 13 11 7 2 9 15 3 Heat Flow Errors 31 | . . 1 . . . . 3 4 4 3 . 2 7 7 Energy Discharges 41 | . . 1 . . . . 8 11 4 2 1 2 9 3 Parts Rejected 2 | . . . . . . . . 1 . . . 1 . . Data Loss (minor) 31 | . . . . . . . 4 10 3 3 . 1 6 4 Data Loss (major) 23 | . . . . . . . 1 7 3 3 . . 7 2 Misfires 4 | . . . . . . . . 1 1 . . 1 1 . Alerts 4 | . . . . . . . . 1 . 1 . 1 1 . Weapon Failures 7 | . . . . . . . . 4 . . . 3 . . Overload Shots . | . . . . . . . . . . . . . . . Overflow Damage 2795 | . 8 . 68 . . . . 488 742 552 . 37 619 281 Projectiles 79 | . 8 . . . . . . 62 . . . . 9 . Explosions 154 | . . . . . . . . . 73 14 . 32 35 . Melee 2562 | . . . 68 . . . . 426 669 538 . 5 575 281 Knockbacks 15 | . . . 1 . . . . 5 . 2 . . 7 . Impact 11 | . . . 1 . . . . 5 . 2 . . 3 . Kinetic 3 | . . . . . . . . . . . . . 3 . Secondary 1 | . . . . . . . . . . . . . 1 . Self-Inflicted Damage 122 | . . . . . . . . . 55 . . 21 . 46 Shots 4 | . . . . . . . . . 2 . . 1 . 1 Rammed . | . . . . . . . . . . . . . . . Targets Rammed 24 | . 1 5 3 2 . 2 . 8 . . . 3 . . Kicked 24 | . 1 5 3 2 . 2 . 8 . . . 3 . . Crushed . | . . . . . . . . . . . . . . . Highest Temperature 333 | 120 80 179 22 . 14 28 215 230 196 333 . 258 260 272 Average Temperature 63 | 63 20 94 6 . 7 13 26 54 73 76 . 71 112 107 Received Heat Transfer 2548 | . 72 . 726 . . . 549 451 153 . . 108 285 204 Effects 1 | . . . . . . . . . . . . . 1 . Interference 1 | . . . . . . . . . . . . . 1 . Siege Activations . | . . . . . . . . . . . . . . . Robots Corrupted 3 | . . . . . . . . . 1 . . 2 . . Combat Hostiles 1 | . . . . . . . . . 1 . . . . . Parts Fried 16 | . . . . . . . . 5 5 2 . . 4 . Impact Corruptions 65 | . . . . . . . . 13 27 10 . 3 12 . Robots Melted 2 | . . . . . . . 2 . . . . . . . Combat Hostiles 1 | . . . . . . . 1 . . . . . . . Parts Melted 11 | 1 . . . . . . 9 . . . . . 1 . Heat Transferred 4946 | 259 370 . . . . . 2997 1170 . 100 . 50 . . Parts Sabotaged . | . . . . . . . . . . . . . . . Parts Stolen . | . . . . . . . . . . . . . . . Parts Stripped . | . . . . . . . . . . . . . . . Power Chain Reactions 2 | . . . . . . . . . . 1 . 1 . . Missiles Intercepted . | . . . . . . . . . . . . . . . Alert | -11 -10 -10 -9 -9 -9 -8 -8 -7 -7 -7 -7 -6 -6 -6 ------- Run | Scr Mat Min Mat Min Exi Min Mat Fac Low Low Dat Pro Fac Ext Peak Influence 989 | 10 291 63 732 267 . 370 265 462 . . . . 989 817 Initial 451 | . 6 63 . 267 . . 144 82 . . . . 107 451 Average 359 | 6 125 55 442 267 . 165 171 208 . . . . 543 608 Maximum Alert Level 3 | . 1 . 3 1 . 1 1 2 . . . . 3 3 Low Security (%) 35 | 100 84 100 11 . . 58 78 51 . . . . 15 . Level 1 24 | . 15 . 37 100 . 41 21 29 . . . . 15 . Level 2 30 | . . . 47 . . . . 19 . . . . 43 78 Level 3 9 | . . . 3 . . . . . . . . . 25 21 Level 4 . | . . . . . . . . . . . . . . . Level 5 . | . . . . . . . . . . . . . . . High Security . | . . . . . . . . . . . . . . . Max Security . | . . . . . . . . . . . . . . . Squads Dispatched 41 | . 3 . 8 . . . 2 8 . . . . 18 2 Investigation 14 | . 1 . 5 . . . 1 1 . . . . 6 . Extermination 9 | . . . . . . . . 4 . . . . 5 . Reinforcement 15 | . 2 . 3 . . . . 3 . . . . 6 1 Assault 2 | . . . . . . . . . . . . . 1 1 Garrison 1 | . . . . . . . 1 . . . . . . . Intercept . | . . . . . . . . . . . . . . . Searches Triggered 1 | . . . . . . . . . . . . . 1 . Data Miner Redirects 4 | . . . . . . . . . . . . . 3 1 Construction Impeded 3 | . . . . . . . . 2 . . . . 1 . Haulers Reinforced 3 | . . . . . . . . 1 . . . . 2 . Active Scanning Responses . | . . . . . . . . . . . . . . . Cargo Convoy Interrupts 1 | . . . . . . . . . . . . . 1 . Stealth | -11 -10 -10 -9 -9 -9 -8 -8 -7 -7 -7 -7 -6 -6 -6 --------- Run | Scr Mat Min Mat Min Exi Min Mat Fac Low Low Dat Pro Fac Ext Distress Signals 12 | . 1 . 3 . . 1 1 1 . . . . 2 3 Communications Jammed 25 | . . . . . . . . . . . . . 25 . Distress Signals 25 | . . . . . . . . . . . . . 25 . Times Spotted 288 | . 23 8 67 . . 16 21 28 12 . . 6 83 24 Peak Tracking Total 13 | . 4 11 8 . 9 5 4 4 4 . . 3 13 6 Tactical Retreats 29 | . 2 1 5 . . . . 3 . . . . 17 1 Traps | -11 -10 -10 -9 -9 -9 -8 -8 -7 -7 -7 -7 -6 -6 -6 ------- Run | Scr Mat Min Mat Min Exi Min Mat Fac Low Low Dat Pro Fac Ext Traps Triggered 12 | . . . 1 . . . . 4 . 1 . . 4 2 Indirectly . | . . . . . . . . . . . . . . . Trap Hack Attempts . | . . . . . . . . . . . . . . . Triggered . | . . . . . . . . . . . . . . . Disarmed . | . . . . . . . . . . . . . . . Reprogrammed . | . . . . . . . . . . . . . . . Reused . | . . . . . . . . . . . . . . . Traps Extracted . | . . . . . . . . . . . . . . . Installed . | . . . . . . . . . . . . . . . Triggered 2 | . . . . . . . . . 1 1 . . . . Machines | -11 -10 -10 -9 -9 -9 -8 -8 -7 -7 -7 -7 -6 -6 -6 ---------- Run | Scr Mat Min Mat Min Exi Min Mat Fac Low Low Dat Pro Fac Ext Machines Disabled 20 | . . . 1 . 4 1 1 3 . . . . 9 1 Max in Single Turn 1 | . . . 1 . 1 1 1 1 . . . . . 1 Garrison Access 3 | . . . . . . . 1 1 . . . . 1 . Machines Sabotaged . | . . . . . . . . . . . . . . . Garrisons Compromised . | . . . . . . . . . . . . . . . Overloaded Fab Kills . | . . . . . . . . . . . . . . . Hacking | -11 -10 -10 -9 -9 -9 -8 -8 -7 -7 -7 -7 -6 -6 -6 --------- Run | Scr Mat Min Mat Min Exi Min Mat Fac Low Low Dat Pro Fac Ext Machines Accessed 76 | . 5 1 13 . 2 . 8 17 2 1 4 1 20 2 Terminals 37 | . 4 1 8 . . . 4 8 . . . 1 9 2 Fabricators 8 | . . . . . . . . 3 . . . . 5 . Repair Stations 4 | . . . 1 . . . 1 1 . . . . 1 . Recycling Units 8 | . 1 . 2 . . . 1 2 . . . . 2 . Scanalyzers 6 | . . . 2 . . . 1 1 . . . . 2 . Garrison Access 4 | . . . . . . . 1 2 . . . . 1 . Total Hacks 240 | . 10 3 44 . 2 . 25 55 2 1 28 2 61 7 Successful 132 | . 5 . 18 . 2 . 15 22 2 1 28 2 37 . Failed 108 | . 5 3 26 . . . 10 33 . . . . 24 7 Catastrophic 17 | . . 2 3 . . . 1 5 . . . . 4 2 Database Lockouts . | . . . . . . . . . . . . . . . Manual 95 | . 9 3 27 . 1 . 14 19 . . . . 21 1 Terminals 112 | . 9 3 21 . . . 13 29 . . . 2 28 7 Fabricators 27 | . . . . . . . . 6 . . . . 21 . Repair Stations 13 | . . . 2 . . . 4 6 . . . . 1 . Recycling Units 22 | . 1 . 7 . . . 3 7 . . . . 4 . Scanalyzers 23 | . . . 14 . . . 3 1 . . . . 5 . Garrison Access 10 | . . . . . . . 2 6 . . . . 2 . Terminal Hacks 65 | . 3 . 4 . 2 . 3 10 2 1 28 2 10 . Record 16 | . . . 1 . 1 . . . 1 . 11 2 . . Part Schematic 14 | . . . . . . . 1 1 . . 9 . 3 . Robot Schematic 8 | . 1 . 1 . . . . 1 . . 5 . . . Prototype ID Bank 6 | . 1 . . . . . 1 1 . . 3 . . . Open Door 3 | . . . . . . . . . 1 1 . . 1 . Level Access Points 1 | . . . . . . . . 1 . . . . . . Branch Access Points 3 | . . . . . . . . 2 . . . . 1 . Terminal Index 3 | . . . 1 . . . 1 1 . . . . . . Fabricator Index 1 | . . . . . . . . 1 . . . . . . Alert Level 1 | . . . . . . . . . . . . . 1 . Unreport Threat 2 | . . . 1 . . . . . . . . . 1 . Locate Traps 2 | . . . . . . . . . . . . . 2 . Recall Investigation 1 | . 1 . . . . . . . . . . . . . Recall Reinforcements 1 | . . . . . . . . 1 . . . . . . Hauler Manifests 1 | . . . . . . . . 1 . . . . . . Zone Layout 1 | . . . . . . . . . . . . . 1 . EX-Prototype ID Bank 1 | . . . . . 1 . . . . . . . . . Fabricator Hacks 16 | . . . . . . . . 3 . . . . 13 . Network Status 1 | . . . . . . . . 1 . . . . . . Load Schematic 7 | . . . . . . . . 1 . . . . 6 . Build 8 | . . . . . . . . 1 . . . . 7 . Repair Station Hacks 8 | . . . 2 . . . 2 4 . . . . . . Scan Component 4 | . . . 1 . . . 1 2 . . . . . . Repair 4 | . . . 1 . . . 1 2 . . . . . . Recycling Unit Hacks 4 | . . . 1 . . . 1 1 . . . . 1 . Retrieve Components 4 | . . . 1 . . . 1 1 . . . . 1 . Scanalyzer 11 | . . . 5 . . . 2 . . . . . 4 . Insert Component 8 | . . . 4 . . . 1 . . . . . 3 . Analyze 3 | . . . 1 . . . 1 . . . . . 1 . Garrison Access Hacks 4 | . . . . . . . 2 1 . . . . 1 . Seal Access 3 | . . . . . . . 1 1 . . . . 1 . Coupler Status 1 | . . . . . . . 1 . . . . . . . Unauthorized Hacks 24 | . 2 . 6 . . . 5 3 . . . . 8 . Terminals 14 | . 1 . 3 . . . 4 2 . . . . 4 . Assimilate 1 | . . . . . . . . . . . . . 1 . Botnet 9 | . . . 2 . . . 3 1 . . . . 3 . Operators 4 | . 1 . 1 . . . 1 1 . . . . . . Fabricators 4 | . . . . . . . . . . . . . 4 . Prioritize 3 | . . . . . . . . . . . . . 3 . Haulers 1 | . . . . . . . . . . . . . 1 . Repair Stations . | . . . . . . . . . . . . . . . Recycling Units 5 | . 1 . 2 . . . 1 1 . . . . . . Reject 2 | . . . . . . . 1 1 . . . . . . Tunnel 3 | . 1 . 2 . . . . . . . . . . . Scanalyzers 1 | . . . 1 . . . . . . . . . . . Extract 1 | . . . 1 . . . . . . . . . . . Garrison Access . | . . . . . . . . . . . . . . . Data Cores Recovered 1 | . . . . . . . . . . . . . 1 . Used 1 | . . . . . . . . . . . . . 1 . Hacking Detections 59 | . 4 1 13 . . . 6 15 . . . . 18 2 Full Trace Events 9 | . . . 1 . . . 1 1 . . . . 6 . Feedback Events 1 | . . . . . . . . . . . . . 1 . Hackware Fried 1 | . . . . . . . . . . . . . 1 . Feedback Blocked . | . . . . . . . . . . . . . . . Robot Schematics Acquired 8 | . 1 . 1 . . . . 1 . . 5 . . . Robots Built 6 | . . . . . . . . 1 . . . . 5 . Authchips 1 | . . . . . . . . . . . . . 1 . Time 223 | . . . . . . . . 40 . . . . 183 . Total Robot Build Rating 19 | . . . . . . . . 1 . . . . 18 . Part Schematics Acquired 25 | . . . 9 . . . 2 1 . . 9 . 4 . Parts Built 6 | . . . . . . . . . . . . . 6 . Authchips 2 | . . . . . . . . . . . . . 2 . Time 246 | . . . . . . . . . . . . . 246 . Total Part Build Rating 37 | . . . . . . . . . . . . . 37 . Parts Repaired 4 | . . . 1 . . . 1 2 . . . . . . Time 138 | . . . 68 . . . 38 32 . . . . . . Parts Recycled . | . . . . . . . . . . . . . . . Recycled Matter . | . . . . . . . . . . . . . . . Retrieved Matter . | . . . . . . . . . . . . . . . Retrieved Components 18 | . . . 5 . . . 3 10 . . . . . . Parts Scanalyzed 4 | . . . 1 . . . 1 . . . . . 2 . Part Schematics Acquired 3 | . . . 1 . . . 1 . . . . . 1 . Parts Damaged . | . . . . . . . . . . . . . . . Bothacking | -11 -10 -10 -9 -9 -9 -8 -8 -7 -7 -7 -7 -6 -6 -6 ------------ Run | Scr Mat Min Mat Min Exi Min Mat Fac Low Low Dat Pro Fac Ext Used RIF Installer . | . . . . . . . . . . . . . . . Robots Hacked . | . . . . . . . . . . . . . . . Non-combat . | . . . . . . . . . . . . . . . Combat . | . . . . . . . . . . . . . . . Robot Hacks Applied . | . . . . . . . . . . . . . . . Relay Couplers Released . | . . . . . . . . . . . . . . . Fabnet Peak Effective % . | . . . . . . . . . . . . . . . Robots Rewired 14 | . . . . . . . . . . . . . . 14 Allies Hacked 2 | . . . . . . . . . . . . . 2 . Hacks Repelled . | . . . . . . . . . . . . . . . Allies | -11 -10 -10 -9 -9 -9 -8 -8 -7 -7 -7 -7 -6 -6 -6 -------- Run | Scr Mat Min Mat Min Exi Min Mat Fac Low Low Dat Pro Fac Ext Total Allies 31 | . . . . . . . . 1 . . . 1 7 22 Largest Group 10 | . . . . . . . . 1 1 1 1 2 6 10 Highest-Rated Group 297 | . . . . . . . . 14 14 14 14 110 258 297 Highest-Rated Ally 96 | . . . . . . . . 14 14 14 14 96 96 39 Total Orders 12 | . . . . . . . . 8 4 . . . . . STAY 6 | . . . . . . . . 4 2 . . . . . FOLLOW 6 | . . . . . . . . 4 2 . . . . . Ally Attacks 129 | . . . . . . . . . . . . 11 36 82 Total Damage 3056 | . . . . . . . . . . . . 324 1249 1483 Kills 31 | . . . . . . . . . . . . 1 10 20 Allies Corrupted . | . . . . . . . . . . . . . . . Allies Melted 1 | . . . . . . . . . . . . . . 1 Intel | -11 -10 -10 -9 -9 -9 -8 -8 -7 -7 -7 -7 -6 -6 -6 ------- Run | Scr Mat Min Mat Min Exi Min Mat Fac Low Low Dat Pro Fac Ext Robot Analysis Total . | . . . . . . . . . . . . . . . Derelict Logs Recovered 4 | . . 1 . . . . . . 1 2 . . . . Drone Launches . | . . . . . . . . . . . . . . . Drone Recoveries . | . . . . . . . . . . . . . . . Exploration | -11 -10 -10 -9 -9 -9 -8 -8 -7 -7 -7 -7 -6 -6 -6 ------------- Run | Scr Mat Min Mat Min Exi Min Mat Fac Low Low Dat Pro Fac Ext Turns Passed 15053 | 44 1069 415 2633 360 473 192 1115 2780 667 475 116 363 3337 1014 Spaces Moved 11134 | 14 558 308 1411 294 375 77 601 1726 402 316 92 224 3723 1013 Core 24 | . . . . . . . . . . . . . 24 . Treads . | . . . . . . . . . . . . . . . Legs 7121 | 14 558 308 1411 294 375 77 601 1726 402 316 92 224 723 . Wheels . | . . . . . . . . . . . . . . . Hover 3989 | . . . . . . . . . . . . . 2976 1013 Flight . | . . . . . . . . . . . . . . . Fastest Speed 48 | 120 120 120 120 120 120 120 120 120 120 122 122 122 48 58 Average Speed 96 | 120 120 120 120 120 120 120 120 120 122 123 122 122 65 58 Slowest Speed 190 | 120 120 120 120 120 120 120 120 122 125 125 122 123 190 62 Overloaded Moves . | . . . . . . . . . . . . . . . Propulsion Burnouts . | . . . . . . . . . . . . . . . Robots Hopped . | . . . . . . . . . . . . . . . Cave-ins Triggered 1 | . . . . . . . . . 1 . . . . . Exploration Rate (%) 54 | 2 89 64 96 61 70 15 47 41 58 48 68 38 59 55 Regions Visited 14 Branch Regions 9 Pre-discovered Areas 5 | . 1 . 2 . 1 . . . . . 1 . . . Known Exits Taken 4 | . . . . . . . 1 1 . . . 1 1 . Unknown Exits Taken 10 | 1 1 1 1 1 1 1 . . 1 1 1 . . . Scrap Searched 7 | . . 1 . 1 . . . . 1 1 . 3 . . Spaces Dug 56 | . . . 3 . . . . 21 . . . . 29 3 Terrain Destroyed 235 | . . . 3 . . . . 23 63 2 . 7 87 50 Melee 36 | . . . 3 . . . . 1 . . . . 29 3 Projectile 12 | . . . . . . . . 5 . . . . 7 . AOE 187 | . . . . . . . . 17 63 2 . 7 51 47 Terrain Rammed . | . . . . . . . . . . . . . . . Walls Destroyed . | . . . . . . . . . . . . . . . Machines Disabled . | . . . . . . . . . . . . . . . Actions | -11 -10 -10 -9 -9 -9 -8 -8 -7 -7 -7 -7 -6 -6 -6 --------- Run | Scr Mat Min Mat Min Exi Min Mat Fac Low Low Dat Pro Fac Ext Total 14133 | 25 878 329 2016 301 391 120 864 2226 497 372 95 277 4357 1385 Wait 1338 | . 219 . 244 6 . 4 98 235 23 21 . 14 354 120 Move 11120 | 13 557 307 1410 293 374 76 600 1725 401 315 91 223 3722 1013 Hop . | . . . . . . . . . . . . . . . Pick Up 136 | 2 15 2 33 . 2 . 18 24 5 3 . 6 18 8 Fast Attach 147 | 1 4 1 9 . . 1 19 29 4 12 2 3 57 5 Attach 48 | . . . 8 . . . 7 8 5 . . 3 15 2 Detach 5 | . . . 2 . . . . . . 1 . . 1 1 Swap 145 | 1 10 . 53 . 3 1 17 34 7 . . 3 13 3 Drop 235 | . 21 2 58 . 3 2 31 47 4 6 2 5 47 7 Fire 545 | 8 51 12 163 . 9 34 73 97 12 5 . 17 62 2 Melee 185 | . . . 33 . . . 1 19 36 9 . . 64 23 Ram . | . . . . . . . . . . . . . . . Kick 24 | . 1 5 3 2 . 2 . 8 . . . 3 . . Crush . | . . . . . . . . . . . . . . . Escape Stasis 30 | . . . . . . . . . . . . . 4 26 Rewire 175 | . . . . . . . . . . . . . . 175 Trap . | . . . . . . . . . . . . . . . Miscellaneous . | . . . . . . . . . . . . . . . Route ------- -11/Scrapyard -10/Materials (discovered 5 exits: *Mat x3 / *Min x2) -10/Mines -9/Materials (discovered 4 exits: *Mat x3 / [*Min]) -9/Mines -9/Exiles (discovered 2 exits: [*Min x2]) -8/Mines -8/Materials (discovered 3 exits: *Fac / [*Sto x2]) -7/Factory (discovered 6 exits: *Fac x4 / *Low x2) -7/Lower Caves -7/Lower Caves -7/Data Miner -6/Proximity Caves -6/Factory (discovered 5 exits: Fac / Low x2 / *Ext x2) -6/Extension History --------- Turn | Location | Event 25 | -11/Scrapyard | Discovered new exit (range 3) 45 | -11/Scrapyard | Entered Materials 148 | -10/Materials | Discovered new exit (range 9) 315 | -10/Materials | Build established: Mutant 537 | -10/Materials | Discovered new exit (range 9) 557 | -10/Materials | Discovered new exit (range 14) 934 | -10/Materials | Discovered new exit (range 4) 943 | -10/Materials | Discovered new exit (range 15) 1114 | -10/Materials | Entered Mines 1182 | -10/Mines | A weapon hastily lodged in a ceiling crevice suddenly fell to the ground 1190 | -10/Mines | Learned 2 Materials zone layouts 1197 | -10/Mines | Assembled infested the area 1316 | -10/Mines | Discovered new exit (range 9) 1433 | -10/Mines | Found a damaged Exp. Sensor Array with a note attached 1436 | -10/Mines | Found Prototype Device 1529 | -10/Mines | Entered Materials 1529 | -9/Materials | Evolved 2 slots: Propulsion x2 2144 | -9/Materials | Discovered new exit (range 15) 2293 | -9/Materials | Identified Exp. Sensor Array 2392 | -9/Materials | Build established: Scavenger-Mutant 3020 | -9/Materials | Discovered new exit (range 15) 3350 | -9/Materials | Core integrity fell below 50% 3542 | -9/Materials | Discovered new exit (range 9) 3918 | -9/Materials | Repaired Broken Exp. Sensor Array 3969 | -9/Materials | Discovered new exit (range 16) 4061 | -9/Materials | Build established: Mutant 4162 | -9/Materials | Entered Mines 4516 | -9/Mines | Deemed a non-threat by the Exiles lab entrance 4518 | -9/Mines | Discovered new exit (range 5) 4522 | -9/Mines | Entered Exiles 4538 | -9/Exiles | Discovered new exit (range 15) 4552 | -9/Exiles | Met 8R-AWN 4573 | -9/Exiles | Met EX-HEX 4605 | -9/Exiles | Met EX-BIN 4618 | -9/Exiles | Aligned with FarCom system 4620 | -9/Exiles | Given EX-Vault access code 4648 | -9/Exiles | Opened EX-Vault 4659 | -9/Exiles | Found Latent Energy Streamer 4694 | -9/Exiles | Warned to stay clear of 0b10 Research branches 4807 | -9/Exiles | Met EX-DEC 4879 | -9/Exiles | Learned location of Zion (-6) 4934 | -9/Exiles | Discovered new exit (range 14) 4975 | -9/Exiles | Attacked by the Exiles 4995 | -9/Exiles | Entered Mines 5144 | -8/Mines | Destroyed 8 combat bots 5181 | -8/Mines | Discovered new exit (range 4) 5187 | -8/Mines | Entered Materials 5187 | -8/Materials | Evolved 2 slots: Utility x2 5353 | -8/Materials | Lost 8 parts (1p3n2u2w) 5461 | -8/Materials | Repaired Carbon-fiber Leg 5668 | -8/Materials | Build established: Scavenger-Mutant 5711 | -8/Materials | Discovered new exit (range 12) 5858 | -8/Materials | Discovered new exit (range 15) 5867 | -8/Materials | Garrison activated, responded to threat 6275 | -8/Materials | Discovered new exit (range 7) 6301 | -8/Materials | Identified exit to Factory 6302 | -8/Materials | Entered Factory 6302 | -7/Factory | Evolved 2 slots: Utility x2 6902 | -7/Factory | Identified exit to Lower Caves 7916 | -7/Factory | Fabricated M-13 Machinist? 8020 | -7/Factory | Discovered new exit (range 4) 8024 | -7/Factory | Identified exit to Factory 8142 | -7/Factory | Build established: Mutant 8697 | -7/Factory | Build established: Hacker-Mutant 8786 | -7/Factory | Repaired Imp. Aluminum Leg 8803 | -7/Factory | Repaired Imp. Aluminum Leg 9082 | -7/Factory | Entered Lower Caves 9082 | -7/Lower Caves | Accompanied by 1 ally 9083 | -7/Lower Caves | Build established: Mutant 9243 | -7/Lower Caves | Crushed by falling debris 9243 | -7/Lower Caves | Core integrity fell below 50% 9243 | -7/Lower Caves | System corruption reached 10% 9311 | -7/Lower Caves | Learned Factory terminal intel 9399 | -7/Lower Caves | Ambushed by wild Derelicts 9444 | -7/Lower Caves | System corruption reached 30% 9515 | -7/Lower Caves | Lost 11 parts (2p3n5u1w) 9569 | -7/Lower Caves | Discovered new exit (range 3) 9749 | -7/Lower Caves | Entered another Lower Caves area 9749 | -7/Lower Caves | Accompanied by 1 ally 9754 | -7/Lower Caves | Learned location of 1 exit from Factory 9901 | -7/Lower Caves | Learned Factory terminal intel 10208 | -7/Lower Caves | Discovered new exit (range 12) 10224 | -7/Lower Caves | Entered Data Miner 10224 | -7/Data Miner | Accompanied by 1 ally 10226 | -7/Data Miner | Discovered new exit (range 6) 10249 | -7/Data Miner | Met Data Miner 10269 | -7/Data Miner | Learned location of Section 7 (-2) 10269 | -7/Data Miner | Acquired the access code to Warlord's prototype stash 10290 | -7/Data Miner | Received God Mode back door access code from Data Miner 10340 | -7/Data Miner | Entered Proximity Caves 10340 | -6/Proximity Caves | Accompanied by 1 ally 10439 | -6/Proximity Caves | Escorted by Enhanced Grunt 10622 | -6/Proximity Caves | Discovered exit to Factory (range 14) 10703 | -6/Proximity Caves | Entered Factory 10703 | -6/Factory | Accompanied by 2 allies 10703 | -6/Factory | Evolved 2 slots: Utility x2 10704 | -6/Factory | Identified exit to Factory 10705 | -6/Factory | Loaded intel: 28 terminal locations 11302 | -6/Factory | Build established: Skirmisher 11422 | -6/Factory | Incoming investigation squad redirected 11440 | -6/Factory | Fabricated P-60 Hacker? 11474 | -6/Factory | Fabricated P-60 Hacker? 11549 | -6/Factory | Hacker 5c assimilated hostile W-25 Informer 11634 | -6/Factory | Fabricated I-25 Savior (x1) 11733 | -6/Factory | Cargo convoy interrupted 11804 | -6/Factory | Destroyed 13 combat bots 11825 | -6/Factory | Core integrity fell below 50% 11826 | -6/Factory | Released all parts (7) 11851 | -6/Factory | Lost 11 parts (1p5n3u2w) 12170 | -6/Factory | Fabricated Enh. Force Lance? 12286 | -6/Factory | Discovered new exit (range 9) 12290 | -6/Factory | Identified exit to Extension 12430 | -6/Factory | Build established: Hacker-Mutant 12732 | -6/Factory | Discovered exit to Extension (range 6) 12831 | -6/Factory | Identified exit to Lower Caves 13411 | -6/Factory | Fabricated Lgt. Regenerative Plating? 13435 | -6/Factory | Imp. Hacking Suite fried by hacking feedback 13503 | -6/Factory | First assault squad dispatched 13544 | -6/Factory | Fabricated Gyrokinetic Inverter (x2) 13594 | -6/Factory | Incoming assault squad redirected 13731 | -6/Factory | Incoming investigation squad redirected 13756 | -6/Factory | Fabricated Gyrokinetic Inverter? 13841 | -6/Factory | Build established: Machinist-Mutant 13853 | -6/Factory | Search patrols dispatched 14040 | -6/Factory | Entered Extension 14184 | -6/Extension | Rescued a captive Derelict 14185 | -6/Extension | Rescued a captive Derelict 14327 | -6/Extension | Rescued a captive Derelict 14328 | -6/Extension | Rescued a captive Derelict 14333 | -6/Extension | Rescued a captive Derelict 14333 | -6/Extension | Rescued a captive Derelict 14710 | -6/Extension | Rescued a captive Derelict 14711 | -6/Extension | Rescued a captive Derelict 14740 | -6/Extension | First assault squad dispatched 14769 | -6/Extension | Incoming assault squad redirected 14848 | -6/Extension | Spotted B-75 Beast 14878 | -6/Extension | Core integrity fell below 20% 15037 | -6/Extension | Spotted B-75 Beast 15050 | -6/Extension | System corruption reached 10% 15054 | -6/Extension | Destroyed by B-75 Beast with Magnetic Acceleration Cannon Last Messages --------------- 15024_ System corrupted: Heat flow error (+122). 15035_ Imp. Reaction Control System destroyed. 15035_ Phasing Sabre blasted off. 15035_ Phasing Sabre crushed and broken. 15039_ System corrupted: Energy discharge (-34). 15041_ Machine disabled. 15043_ C-30 ARC bursts open, deploying its payload. 15043_ G-67 Veteran unfolds itself. 15043_ B-48 Gladiator unfolds itself. 15043_ G-50 Soldier unfolds itself. 15044_ Gyrokinetic Inverter destroyed. 15046_ Knocked back. 15047_ Lgt. Antimatter Reactor destroyed. 15048_ G-50 Soldier suffers critical hit (Impale). 15048_ Destroyed Carbon-fiber Leg. 15049_ Enh. Force Lance destroyed. 15049_ System corrupted by crushing effect (+2). 15050_ G-50 Soldier destroyed. 15051_ Adv. Heat Sink destroyed. 15054_ System corrupted: Substantial component data lost. Map ----- +----------------------------------------------------+ | ########## #??????????????????????????????????? | | ?????????# %#??????????????????????????????????? | | ?????????# %% #??????????????????????????????????? | | ?###?????# #??????????????????????????????????? | | ## ####### #??????????????????????????????????? | | #??????????????????????????????????? | | ####### #??????????????????????????????????? | | ##T#?????#% %##?????????????????????????????????? | | ?###?????#[ %##????????m????????????????????????? | | ?????????#%% %##???????? ????????????????????????? | | ????######+##%#????????? ????????????????????????? | | ????# /%%%#[#????????? #???????????????????????? | | ????# !%!#=#????????? #???????????????????????? | | ????# = %% %+%#????????# #???????????????????????? | | ????# [%%=%#%#????????# ??b????????????????????? | | ????# [! /[=#%#%???????# #???????????????????????? | | ????#########%###??????# #???????????????????????? | | ????????????#=#????#???# ##??????????????????????? | | ????????????#!######;### "???????????????????????? | | ??????????###!##;%;% #;#%###?????????????????????? | | ??????????#"/%""= ""#?????????????????????? | | ??????????#=%%!R== gg" #?????????????????????? | | ??????????#% %=*! b #?????????????????????? | | ??##??????# %= %[ #?????????????????????? | | ##"######## % #######???????????????? | | @% ????????? | | ????????? | | ????????? | | BB ?????????? | | BB BB R k ?????????? | | ########### BB ############??????????? | | ??????????# #?????????????????????? | | ??????????# #?????????????????????? | | ??????????# #?????????????????????? | | ??????????# #?????????????????????? | | ??????????######T#"""#######?????????????????????? | | ?????????????????????????????????????????????????? | | ?????????????????????????????????????????????????? | | | | | | | | | | | | | | | | | | | | | | | | | +----------------------------------------------------+ Best States ------------- Heat Dissipation 62 Energy Generation 21 Energy Capacity 500 Matter Stores 300 Matter Capacity 300 Sight Range 22 Robot Scan Range 20 Terrain Scan Density 210 Jamming Range 12 Cloak Strength 2 Additional Mass Support 12 Corruption Containment 8 Armor Coverage 600 Propulsion Shielding 66 Evasion (%) 65 Targeting Accuracy 24 Melee Accuracy 8 Core Analysis 9 Particle Charging 20 Kinecelleration 30 Offensive Hacking 22 Defensive Hacking 10 Authchip Count 5 Item Schematics ----------------- Exp. Sensor Array | -9/Materials | Scanalyzed Imp. Ion Engine | -9/Materials | Extracted EM Shotgun | -9/Materials | Extracted Med. Armor Plating | -9/Materials | Extracted Med. Laser | -9/Materials | Extracted Seismic Detector | -9/Materials | Extracted Med. Storage Unit | -9/Materials | Extracted Field Recycling Unit | -9/Materials | Extracted Maul | -9/Materials | Extracted Carbon-fiber Leg | -8/Materials | Scanalyzed System Shield | -8/Materials | Hacked Hrd. Heavy Armor Plating | -7/Factory | Hacked Combat Drone Bay | -7/Data Miner | Free Lgt. Regenerative Plating | -7/Data Miner | Free Biomechanical Wings | -7/Data Miner | Free Thermal Defense Suite | -7/Data Miner | Free Prc. Rocket Launcher | -7/Data Miner | Free Gyrokinetic Inverter | -7/Data Miner | Free Imp. Transmission Jammer | -7/Data Miner | Free Hvy. Phase Cannon | -7/Data Miner | Free Drone Bay | -7/Data Miner | Free Cmb. Airjet | -6/Factory | Scanalyzed Imp. Weapon Cycler | -6/Factory | Hacked Microactuators | -6/Factory | Hacked Exp. Weapon Shielding | -6/Factory | Hacked Robot Schematics ------------------ M-13 Machinist | -10/Materials | Hacked I-25 Savior | -9/Materials | Hacked P-60 Hacker | -7/Factory | Hacked E-15 Imp | -7/Data Miner | Free G-47 Trooper | -7/Data Miner | Free R-10 Processor | -7/Data Miner | Free A-15 Conveyor | -7/Data Miner | Free B-48 Gladiator | -7/Data Miner | Free Fabricated ------------ M-13 Machinist | x1 | -7/Factory P-60 Hacker | x2 | -6/Factory | Authchip P-60 Hacker | x2 | -6/Factory I-25 Savior | x1 | -6/Factory Enh. Force Lance | x1 | -6/Factory | Preloaded Lgt. Regenerative Plating | x1 | -6/Factory | Authchip Gyrokinetic Inverter | x2 | -6/Factory | Authchip Gyrokinetic Inverter | x2 | -6/Factory Alien Tech Used ----------------- None Achievements -------------- None Challenges ------------ None Game ------ Seed PoweredHackingBoregun Manual? 0 Play Time 03:16:32 Cumulative 370.5 hours Start 2022.04.13 @ 17:03:00 End 2022.04.13 @ 22:29:39 Sessions 1 Manual Loads 0 Difficulty Rogue Special Mode None Game No. 191 Rogue 191 Adventurer 0 Explorer 0 Win Type - Total 12 Types 6/0/4/2/0/0/0/0/0 Lore% 82 Gallery% 84 Achievement% 69 Wizard Run 0 Options --------- ASCII 0 Keyboard 0 Movement Numpad Keybinds 0 Fullscreen 1 Font 18/SmallcapsGlow Map View 76x50 Tactical HUD 1 Map Filters NONE Filters NONE Steam 1 RUN: 63eec48f-4396-4e0e-8df2-e7fa96f7d5cb